[Event "HUN-ch Rapid 2018"]
[Site "Ajka"]
[Date "2018.07.22"]
[Round "13"]
[White "Varga, Klara"]
[Black "Kiss, Pal"]
[Result "1-0"]
[ECO "A11"]
[WhiteElo "2183"]
[BlackElo "2356"]
[Annotator "NA"]
[PlyCount "76"]
[EventDate "2018.07.20"]
[EventType "swiss"]
[EventCountry "HUN"]
[SourceTitle "playchess.com"]
[Source "ChessBase"]
[SourceQuality "1"]
[TimeControl "1200+5"]

1. c4 {[%emt 0:00:01]} c6 {[%emt 0:00:10]} 2. Nf3 {[%emt 0:00:03]} d5 {[%emt 0:00:08]} 3. e3 {[%emt 0:00:27]} Nf6 {[%emt 0:00:04]} 4. Nc3 {[%emt 0:00:02]} Bg4 {[%emt 0:00:34]} 5. cxd5 {[%emt 0:00:17]} Bxf3 {[%emt 0:00:03]} 6. Qxf3 {[%emt 0:00:03]} cxd5 {[%emt 0:00:02]} 7. Bb5+ {[%emt 0:00:14]} Nc6 {[%emt 0:00:07]} 8. Bxc6+ {[%emt 0:00:36]} bxc6 {[%emt 0:00:03]} 9. d4 {[%emt 0:00:02]} e6 {[%emt 0:00:13]} 10. O-O {[%emt 0:00:13]} c5 {[%emt 0:01:00]} 11. dxc5 {[%emt 0:02:07]} Bxc5 {[%emt 0:00:05]} 12. Rd1 {[%emt 0:00:07]} Qb8 {[%emt 0:02:44]} 13. e4 {[%emt 0:01:50]} dxe4 {[%emt 0:00:20]} 14. Nxe4 {[%emt 0:00:02]} Nxe4 {[%emt 0:00:08]} 15. Qxe4 {[%emt 0:00:02]} O-O {[%emt 0:00:08]} 16. b3 {[%emt 0:03:48]} Qb6 {[%emt 0:02:45]} 17. Qf4 {[%emt 0:01:19]} e5 {[%emt 0:02:50]} 18. Qg3 {[%emt 0:01:25]} Bd4 {[%emt 0:00:53]} 19. Rb1 {[%emt 0:01:44]} Rac8 {[%emt 0:03:06]} 20. Bb2 {[%emt 0:00:17]} Bxb2 {[%emt 0:00:48]} 21. Rxb2 {[%emt 0:00:01]} Rfd8 {[%emt 0:00:33]} 22. Re1 {[%emt 0:00:04]} Qd4 {[%emt 0:00:34]} 23. Rbe2 {[%emt 0:00:10]} f6 {[%emt 0:00:10]} 24. h4 {[%emt 0:00:28]} Rc3 {[%emt 0:00:17]} 25. Qh2 {[%emt 0:00:17]} Rd3 {[%emt 0:00:43]} 26. h5 {[%emt 0:00:27]} Rd2 {[%emt 0:00:29]} 27. Rxd2 {[%emt 0:01:27]} Qxd2 {[%emt 0:00:01]} 28. Rf1 {[%emt 0:00:01]} Qxa2 {[%emt 0:01:32]} 29. Qh3 {[%emt 0:00:11]} Qa6 {[%emt 0:00:07]} 30. h6 {[%emt 0:00:02]} Qd6 {[%emt 0:00:23]} 31. hxg7 {[%emt 0:00:08]} Qd7 {[%emt 0:00:31]} 32. Qh4 {[%emt 0:00:21]} Kxg7 {[%emt 0:00:06]} 33. Rc1 {[%emt 0:00:08]} Rc8 {[%emt 0:00:16]} 34. Re1 {[%emt 0:00:22]} Rc7 {[%emt 0:00:14]} 35. Re3 {[%emt 0:00:09]} Qf5 {[%emt 0:00:19]} 36. Rf3 {[%emt 0:00:49]} Qe6 {[%emt 0:00:28]} 37. Rg3+ {[%emt 0:00:03]} Kh8 {[%emt 0:00:07]} 38. Qh6 {[%emt 0:00:04]} Qf7 1-0

[Event "HUN-ch Rapid 2018"]
[Site "Ajka"]
[Date "2018.07.22"]
[Round "13"]
[White "Gaal, Zsoka"]
[Black "Hoang, Thanh Trang"]
[Result "0-1"]
[ECO "A04"]
[WhiteElo "2044"]
[BlackElo "2351"]
[Annotator "NA"]
[PlyCount "76"]
[EventDate "2018.07.20"]
[EventType "swiss"]
[EventCountry "HUN"]
[SourceTitle "playchess.com"]
[Source "ChessBase"]
[SourceQuality "1"]
[TimeControl "1200+5"]

1. Nf3 {[%emt 0:00:03]} f5 {[%emt 0:00:09]} 2. g3 {[%emt 0:00:03]} Nf6 {[%emt 0:00:03]} 3. Bg2 {[%emt 0:00:03]} g6 {[%emt 0:00:03]} 4. d4 {[%emt 0:00:02]} Bg7 {[%emt 0:00:03]} 5. O-O {[%emt 0:00:04]} O-O {[%emt 0:00:05]} 6. Nbd2 {[%emt 0:00:03]} d6 {[%emt 0:00:16]} 7. Re1 {[%emt 0:00:02]} Nc6 {[%emt 0:00:45]} 8. e4 {[%emt 0:00:07]} fxe4 {[%emt 0:03:06]} 9. Nxe4 {[%emt 0:00:04]} Nxe4 {[%emt 0:00:27]} 10. Rxe4 {[%emt 0:00:03]} Bf5 {[%emt 0:00:04]} 11. Re1 {[%emt 0:00:05]} Qd7 {[%emt 0:00:35]} 12. c3 {[%emt 0:01:01]} Kh8 {[%emt 0:00:51]} 13. Bg5 {[%emt 0:02:07]} Bg4 {[%emt 0:00:48]} 14. Qd3 {[%emt 0:02:31]} Rae8 {[%emt 0:00:28]} 15. Nd2 {[%emt 0:01:52]} e5 {[%emt 0:00:37]} 16. d5 {[%emt 0:01:35]} Nd8 {[%emt 0:00:55]} 17. Bxd8 {[%emt 0:01:36]} Rxd8 {[%emt 0:00:11]} 18. Qe3 {[%emt 0:01:41]} a6 {[%emt 0:01:49]} 19. Ne4 {[%emt 0:01:04]} h6 {[%emt 0:00:55]} 20. c4 {[%emt 0:00:47]} Rf7 {[%emt 0:00:48]} 21. Rac1 {[%emt 0:01:18]} b6 {[%emt 0:00:26]} 22. Rc2 {[%emt 0:00:37]} Rdf8 {[%emt 0:00:09]} 23. b3 {[%emt 0:00:15]} g5 {[%emt 0:02:27]} 24. Rd2 {[%emt 0:01:14]} Bf3 {[%emt 0:00:26]} 25. Bxf3 {[%emt 0:01:13]} Rxf3 {[%emt 0:00:02]} 26. Qe2 {[%emt 0:00:02]} g4 {[%emt 0:00:30]} 27. Rd3 {[%emt 0:00:36]} Qf5 {[%emt 0:00:09]} 28. Rxf3 {[%emt 0:00:27]} gxf3 {[%emt 0:00:05]} 29. Qf1 {[%emt 0:00:02]} h5 {[%emt 0:00:12]} 30. h4 {[%emt 0:00:16]} Bh6 {[%emt 0:00:11]} 31. Kh2 {[%emt 0:00:03]} Rg8 {[%emt 0:00:08]} 32. Qh3 {[%emt 0:00:09]} Rg4 {[%emt 0:00:15]} 33. Kh1 {[%emt 0:00:37]} Qg6 {[%emt 0:00:27]} 34. Ng5 {[%emt 0:00:29]} Bxg5 {[%emt 0:00:17]} 35. hxg5 {[%emt 0:00:03]} Qxg5 {[%emt 0:00:07]} 36. Re3 {[%emt 0:00:06]} e4 {[%emt 0:00:15]} 37. Qf1 {[%emt 0:00:14]} h4 {[%emt 0:00:38]} 38. Qa1+ {[%emt 0:00:16]} Kg8 {[%emt 0:00:22]} 0-1